[Event "Titled Tuesday Blitz February 28 Early 2023"]
[White "Md, Imran"]
[Black "Yurasova, Daria"]
[WhiteFideId "25748580"]
[BlackFideId "34146919"]
[WhiteElo "2217"]
[BlackElo "2134"]
[Result "1/2-1/2"]
[Round "04"]
[TimeControl "180+2"]
[Date "2023.02.28"]
[WhiteClock "0:00:22"]
[BlackClock "0:00:14"]

1. d4 {[%clk 0:03:00]}  d5 {[%clk 0:02:59]} 2. Nf3 {[%clk 0:02:59]}  Nf6 {[%clk 0:02:59]} 3. Bf4 {[%clk 0:02:58]}  Bf5 {[%clk 0:02:59]} 4. e3 {[%clk 0:02:56]}  e6 {[%clk 0:03:00]} 5. Bd3 {[%clk 0:02:56]}  Bg6 {[%clk 0:03:00]} 6. O-O {[%clk 0:02:54]}  Nbd7 {[%clk 0:02:59]} 7. Nc3 {[%clk 0:02:50]}  a6 {[%clk 0:02:51]} 8. Qe2 {[%clk 0:02:49]}  Bd6 {[%clk 0:02:49]} 9. Ne5 {[%clk 0:02:43]}  O-O {[%clk 0:02:48]} 10. Rad1 {[%clk 0:02:38]}  Qe7 {[%clk 0:02:47]} 11. Bg3 {[%clk 0:02:30]}  c5 {[%clk 0:02:47]} 12. Nxg6 {[%clk 0:02:21]}  hxg6 {[%clk 0:02:47]} 13. dxc5 {[%clk 0:02:21]}  Bxg3 {[%clk 0:02:41]} 14. hxg3 {[%clk 0:02:18]}  Nxc5 {[%clk 0:02:41]} 15. e4 {[%clk 0:02:02]}  Nxd3 {[%clk 0:02:40]} 16. Rxd3 {[%clk 0:01:58]}  dxe4 {[%clk 0:02:40]} 17. Nxe4 {[%clk 0:01:57]}  Nxe4 {[%clk 0:02:41]} 18. Qxe4 {[%clk 0:01:56]}  Rac8 {[%clk 0:02:39]} 19. c3 {[%clk 0:01:57]}  Rfd8 {[%clk 0:02:39]} 20. Rfd1 {[%clk 0:01:57]}  b5 {[%clk 0:02:16]} 21. Rd4 {[%clk 0:01:42]}  a5 {[%clk 0:02:07]} 22. Qe5 {[%clk 0:01:32]}  Rxd4 {[%clk 0:02:06]} 23. Rxd4 {[%clk 0:01:29]}  b4 {[%clk 0:01:57]} 24. c4 {[%clk 0:01:29]}  a4 {[%clk 0:01:46]} 25. Qb5 {[%clk 0:01:21]}  a3 {[%clk 0:01:36]} 26. b3 {[%clk 0:01:17]}  Rd8 {[%clk 0:01:22]} 27. Qb6 {[%clk 0:01:04]}  Rxd4 {[%clk 0:01:12]} 28. Qxd4 {[%clk 0:01:05]}  Qg5 {[%clk 0:01:06]} 29. Qf4 {[%clk 0:00:47]}  Qd8 {[%clk 0:00:45]} 30. g4 {[%clk 0:00:37]}  Qd1+ {[%clk 0:00:19]} 31. Kh2 {[%clk 0:00:37]}  Qe2 {[%clk 0:00:19]} 32. c5 {[%clk 0:00:35]}  Qxa2 {[%clk 0:00:17]} 33. Qc1 {[%clk 0:00:25]}  Qb2 {[%clk 0:00:15]} 34. Qd1 {[%clk 0:00:21]}  Qe5+ {[%clk 0:00:14]} 35. g3 {[%clk 0:00:21]}  Qxc5 {[%clk 0:00:14]} 36. Qd8+ {[%clk 0:00:21]}  Qf8 {[%clk 0:00:15]} 37. Qa5 {[%clk 0:00:21]}  Qb8 {[%clk 0:00:15]} 38. Kg2 {[%clk 0:00:21]}  Qb7+ {[%clk 0:00:13]} 39. f3 {[%clk 0:00:19]}  Kh7 {[%clk 0:00:13]} 40. Qd8 {[%clk 0:00:19]}  a2 {[%clk 0:00:12]} 41. Qh4+ {[%clk 0:00:19]}  Kg8 {[%clk 0:00:12]} 42. Qd8+ {[%clk 0:00:20]}  Kh7 {[%clk 0:00:12]} 43. Qh4+ {[%clk 0:00:21]}  Kg8 {[%clk 0:00:13]} 44. Qd8+ {[%clk 0:00:22]}  Kh7 {[%clk 0:00:14]} 1/2-1/2


[Site "https://www.chess.com"]

[Event "Titled Tuesday Blitz February 28 Early 2023"]
[White "Gauri, Shankar"]
[Black "Degenbaev, Aziz"]
[WhiteFideId "5041350"]
[BlackFideId "13802640"]
[WhiteElo "2240"]
[BlackElo "2152"]
[Result "0-1"]
[Round "04"]
[TimeControl "180+2"]
[Date "2023.02.28"]
[WhiteClock "0:00:06"]
[BlackClock "0:00:11"]

1. d4 {[%clk 0:02:59]}  Nf6 {[%clk 0:02:59]} 2. Nf3 {[%clk 0:02:59]}  g6 {[%clk 0:02:59]} 3. Nbd2 {[%clk 0:02:58]}  d5 {[%clk 0:02:56]} 4. b4 {[%clk 0:02:58]}  Bg7 {[%clk 0:02:56]} 5. e3 {[%clk 0:02:59]}  O-O {[%clk 0:02:56]} 6. c4 {[%clk 0:02:59]}  c6 {[%clk 0:02:54]} 7. a4 {[%clk 0:02:58]}  Bf5 {[%clk 0:02:51]} 8. Bb2 {[%clk 0:02:58]}  Ne4 {[%clk 0:02:25]} 9. Be2 {[%clk 0:02:55]}  Nxd2 {[%clk 0:02:18]} 10. Qxd2 {[%clk 0:02:53]}  Nd7 {[%clk 0:02:17]} 11. O-O {[%clk 0:02:52]}  dxc4 {[%clk 0:02:11]} 12. Bxc4 {[%clk 0:02:50]}  Nb6 {[%clk 0:02:12]} 13. Be2 {[%clk 0:02:38]}  Qd5 {[%clk 0:02:06]} 14. Rfc1 {[%clk 0:02:34]}  Rfd8 {[%clk 0:01:53]} 15. a5 {[%clk 0:02:25]}  Nc8 {[%clk 0:01:36]} 16. b5 {[%clk 0:02:07]}  cxb5 {[%clk 0:01:23]} 17. a6 {[%clk 0:02:03]}  bxa6 {[%clk 0:01:11]} 18. Rxa6 {[%clk 0:02:01]}  Nb6 {[%clk 0:01:04]} 19. Ra5 {[%clk 0:01:22]}  a6 {[%clk 0:00:58]} 20. Ba3 {[%clk 0:01:11]}  Qd7 {[%clk 0:00:28]} 21. Ra1 {[%clk 0:00:57]}  Nd5 {[%clk 0:00:20]} 22. Bc5 {[%clk 0:00:55]}  Qc6 {[%clk 0:00:18]} 23. Qe1 {[%clk 0:00:31]}  Bf6 {[%clk 0:00:14]} 24. h3 {[%clk 0:00:29]}  Be4 {[%clk 0:00:14]} 25. Nd2 {[%clk 0:00:27]}  Bxg2 {[%clk 0:00:13]} 26. Nf3 {[%clk 0:00:09]}  Nxe3 {[%clk 0:00:09]} 27. fxe3 {[%clk 0:00:07]}  Bxf3 {[%clk 0:00:09]} 28. Bf1 {[%clk 0:00:05]}  Qd5 {[%clk 0:00:07]} 29. Qg3 {[%clk 0:00:05]}  e5 {[%clk 0:00:05]} 30. Bxb5 {[%clk 0:00:05]}  exd4 {[%clk 0:00:05]} 31. Bc4 {[%clk 0:00:03]}  Qxc4 {[%clk 0:00:05]} 32. Qxf3 {[%clk 0:00:04]}  Be5 {[%clk 0:00:03]} 33. exd4 {[%clk 0:00:03]}  Bxd4+ {[%clk 0:00:03]} 34. Bxd4 {[%clk 0:00:04]}  Qxd4+ {[%clk 0:00:04]} 35. Kg2 {[%clk 0:00:04]}  Rac8 {[%clk 0:00:04]} 36. R5a2 {[%clk 0:00:04]}  Rc3 {[%clk 0:00:04]} 37. Qf2 {[%clk 0:00:03]}  Qe4+ {[%clk 0:00:04]} 38. Kg1 {[%clk 0:00:03]}  Rf3 {[%clk 0:00:05]} 39. Qg2 {[%clk 0:00:04]}  Qe3+ {[%clk 0:00:05]} 40. Rf2 {[%clk 0:00:03]}  Rg3 {[%clk 0:00:06]} 41. Rf1 {[%clk 0:00:02]}  Rxg2+ {[%clk 0:00:06]} 42. Kxg2 {[%clk 0:00:03]}  Rd2 {[%clk 0:00:06]} 43. Rxd2 {[%clk 0:00:01]}  Qxd2+ {[%clk 0:00:07]} 44. Rf2 {[%clk 0:00:01]}  Qd5+ {[%clk 0:00:08]} 45. Kh2 {[%clk 0:00:02]}  a5 {[%clk 0:00:09]} 46. h4 {[%clk 0:00:03]}  a4 {[%clk 0:00:09]} 47. h5 {[%clk 0:00:03]}  Qxh5+ {[%clk 0:00:09]} 48. Kg2 {[%clk 0:00:04]}  Qg4+ {[%clk 0:00:09]} 49. Kf1 {[%clk 0:00:04]}  Qc4+ {[%clk 0:00:10]} 50. Kg1 {[%clk 0:00:05]}  a3 {[%clk 0:00:10]} 51. Rf1 {[%clk 0:00:05]}  a2 {[%clk 0:00:10]} 52. Kh2 {[%clk 0:00:05]}  Qxf1 {[%clk 0:00:10]} 53. Kg3 {[%clk 0:00:05]}  a1=Q {[%clk 0:00:11]} 54. Kh4 {[%clk 0:00:06]}  Qaf6+ {[%clk 0:00:11]} 0-1


[Site "https://www.chess.com"]

[Event "Titled Tuesday Blitz February 28 Early 2023"]
[White "Ronka, Erik"]
[Black "Belozerov, Andrei"]
[WhiteFideId "505080"]
[BlackFideId "4120213"]
[WhiteElo "2264"]
[BlackElo "2360"]
[Result "0-1"]
[Round "04"]
[TimeControl "180+2"]
[Date "2023.02.28"]
[WhiteClock "0:00:06"]
[BlackClock "0:00:09"]

1. e4 {[%clk 0:03:00]}  c5 {[%clk 0:02:58]} 2. Nf3 {[%clk 0:02:57]}  Nc6 {[%clk 0:02:58]} 3. d4 {[%clk 0:02:55]}  cxd4 {[%clk 0:02:58]} 4. Nxd4 {[%clk 0:02:56]}  g6 {[%clk 0:02:59]} 5. Nc3 {[%clk 0:02:53]}  Bg7 {[%clk 0:02:59]} 6. Be3 {[%clk 0:02:53]}  Nf6 {[%clk 0:02:58]} 7. Nxc6 {[%clk 0:02:53]}  bxc6 {[%clk 0:02:58]} 8. e5 {[%clk 0:02:54]}  Ng8 {[%clk 0:02:58]} 9. Bd4 {[%clk 0:02:52]}  f6 {[%clk 0:02:55]} 10. Qe2 {[%clk 0:02:51]}  fxe5 {[%clk 0:02:54]} 11. Bxe5 {[%clk 0:02:52]}  Nf6 {[%clk 0:02:54]} 12. O-O-O {[%clk 0:02:51]}  O-O {[%clk 0:02:52]} 13. Qc4+ {[%clk 0:02:40]}  Kh8 {[%clk 0:02:27]} 14. h4 {[%clk 0:02:21]}  d6 {[%clk 0:02:17]} 15. h5 {[%clk 0:02:01]}  gxh5 {[%clk 0:01:40]} 16. Bxf6 {[%clk 0:01:11]}  Rxf6 {[%clk 0:01:38]} 17. Rxh5 {[%clk 0:01:10]}  Bf5 {[%clk 0:01:13]} 18. Bd3 {[%clk 0:00:49]}  Bxd3 {[%clk 0:00:30]} 19. Qxd3 {[%clk 0:00:50]}  Rh6 {[%clk 0:00:20]} 20. Rdh1 {[%clk 0:00:32]}  Qf8 {[%clk 0:00:20]} 21. Rxh6 {[%clk 0:00:21]}  Bxh6+ {[%clk 0:00:20]} 22. Kb1 {[%clk 0:00:20]}  Rb8 {[%clk 0:00:20]} 23. a3 {[%clk 0:00:16]}  Qf6 {[%clk 0:00:19]} 24. Qh3 {[%clk 0:00:16]}  Kg7 {[%clk 0:00:17]} 25. Qg3+ {[%clk 0:00:16]}  Qg6 {[%clk 0:00:15]} 26. Qd3 {[%clk 0:00:15]}  Qxd3 {[%clk 0:00:14]} 27. cxd3 {[%clk 0:00:15]}  Bf4 {[%clk 0:00:14]} 28. g3 {[%clk 0:00:15]}  Be5 {[%clk 0:00:14]} 29. Kc2 {[%clk 0:00:16]}  d5 {[%clk 0:00:14]} 30. Ne2 {[%clk 0:00:16]}  Rxb2+ {[%clk 0:00:13]} 31. Kd1 {[%clk 0:00:15]}  Rb1+ {[%clk 0:00:13]} 32. Nc1 {[%clk 0:00:15]}  Bb2 {[%clk 0:00:13]} 33. Kc2 {[%clk 0:00:15]}  Rxc1+ {[%clk 0:00:13]} 34. Rxc1 {[%clk 0:00:15]}  Bxc1 {[%clk 0:00:14]} 35. Kxc1 {[%clk 0:00:15]}  Kf6 {[%clk 0:00:14]} 36. Kd2 {[%clk 0:00:10]}  e5 {[%clk 0:00:14]} 37. Ke3 {[%clk 0:00:10]}  Kf5 {[%clk 0:00:14]} 38. f3 {[%clk 0:00:08]}  h5 {[%clk 0:00:14]} 39. d4 {[%clk 0:00:06]}  exd4+ {[%clk 0:00:12]} 40. Kxd4 {[%clk 0:00:06]}  Ke6 {[%clk 0:00:12]} 41. f4 {[%clk 0:00:03]}  Kd6 {[%clk 0:00:11]} 42. a4 {[%clk 0:00:03]}  c5+ {[%clk 0:00:11]} 43. Kd3 {[%clk 0:00:04]}  Ke6 {[%clk 0:00:12]} 44. Ke3 {[%clk 0:00:04]}  Kf5 {[%clk 0:00:12]} 45. Kf3 {[%clk 0:00:04]}  d4 {[%clk 0:00:12]} 46. Ke2 {[%clk 0:00:04]}  Ke4 {[%clk 0:00:12]} 47. Kd2 {[%clk 0:00:05]}  c4 {[%clk 0:00:13]} 48. Kc2 {[%clk 0:00:05]}  c3 {[%clk 0:00:13]} 49. Kb3 {[%clk 0:00:04]}  Ke3 {[%clk 0:00:13]} 50. f5 {[%clk 0:00:05]}  Kd2 {[%clk 0:00:13]} 51. f6 {[%clk 0:00:05]}  c2 {[%clk 0:00:13]} 52. f7 {[%clk 0:00:05]}  c1=Q {[%clk 0:00:13]} 53. f8=Q {[%clk 0:00:05]}  Qc3+ {[%clk 0:00:14]} 54. Ka2 {[%clk 0:00:05]}  Qc2+ {[%clk 0:00:14]} 55. Ka3 {[%clk 0:00:04]}  Qd3+ {[%clk 0:00:14]} 56. Ka2 {[%clk 0:00:04]}  Qe2 {[%clk 0:00:11]} 57. Kb1 {[%clk 0:00:01]}  d3 {[%clk 0:00:09]} 58. Qf4+ {[%clk 0:00:01]}  Qe3 {[%clk 0:00:08]} 59. Qb4+ {[%clk 0:00:02]}  Ke2 {[%clk 0:00:09]} 60. Ka2 {[%clk 0:00:03]}  d2 {[%clk 0:00:09]} 61. Qb2 {[%clk 0:00:03]}  Qe6+ {[%clk 0:00:08]} 62. Kb1 {[%clk 0:00:01]}  Qd5 {[%clk 0:00:08]} 63. Qf6 {[%clk 0:00:01]}  Qe4+ {[%clk 0:00:08]} 64. Ka2 {[%clk 0:00:02]}  Qd5+ {[%clk 0:00:07]} 65. Kb2 {[%clk 0:00:02]}  d1=Q {[%clk 0:00:08]} 66. Qa6+ {[%clk 0:00:03]}  Q5d3 {[%clk 0:00:07]} 67. Qh6 {[%clk 0:00:04]}  Q3d2+ {[%clk 0:00:06]} 68. Qxd2+ {[%clk 0:00:03]}  Qxd2+ {[%clk 0:00:07]} 69. Kb3 {[%clk 0:00:04]}  Qd3+ {[%clk 0:00:08]} 70. Kb4 {[%clk 0:00:04]}  Qxg3 {[%clk 0:00:09]} 71. a5 {[%clk 0:00:04]}  Qb8+ {[%clk 0:00:08]} 72. Ka4 {[%clk 0:00:04]}  a6 {[%clk 0:00:08]} 73. Ka3 {[%clk 0:00:04]}  Kd2 {[%clk 0:00:09]} 74. Ka2 {[%clk 0:00:05]}  Kc2 {[%clk 0:00:09]} 75. Ka1 {[%clk 0:00:06]}  Qb2# {[%clk 0:00:09]} 0-1


[Site "https://www.chess.com"]

[Event "Titled Tuesday Blitz February 28 Early 2023"]
[White "Vagman, Roy"]
[Black "Averjanov, Alexey"]
[WhiteFideId "2828995"]
[BlackFideId "14109867"]
[WhiteElo "2188"]
[BlackElo "2654"]
[Result "1/2-1/2"]
[Round "04"]
[TimeControl "180+2"]
[Date "2023.02.28"]
[WhiteClock "0:00:06"]
[BlackClock "0:00:06"]

1. e4 {[%clk 0:03:00]}  c6 {[%clk 0:03:00]} 2. Nf3 {[%clk 0:02:56]}  d5 {[%clk 0:03:01]} 3. d3 {[%clk 0:02:57]}  Qc7 {[%clk 0:03:00]} 4. Nc3 {[%clk 0:02:56]}  dxe4 {[%clk 0:03:00]} 5. Nxe4 {[%clk 0:02:55]}  Bg4 {[%clk 0:03:00]} 6. h3 {[%clk 0:02:55]}  Bh5 {[%clk 0:03:00]} 7. g4 {[%clk 0:02:55]}  Bg6 {[%clk 0:02:59]} 8. Bg2 {[%clk 0:02:56]}  Nd7 {[%clk 0:02:58]} 9. O-O {[%clk 0:02:56]}  Ngf6 {[%clk 0:02:58]} 10. Nxf6+ {[%clk 0:02:50]}  Nxf6 {[%clk 0:02:59]} 11. b3 {[%clk 0:02:46]}  Qa5 {[%clk 0:02:53]} 12. Bd2 {[%clk 0:02:40]}  Qc7 {[%clk 0:02:53]} 13. Bc3 {[%clk 0:02:39]}  e6 {[%clk 0:02:51]} 14. Qe2 {[%clk 0:02:33]}  Be7 {[%clk 0:02:48]} 15. Be5 {[%clk 0:02:32]}  Qb6 {[%clk 0:02:46]} 16. a4 {[%clk 0:02:29]}  a5 {[%clk 0:02:45]} 17. Nd2 {[%clk 0:02:29]}  O-O {[%clk 0:02:42]} 18. Nc4 {[%clk 0:02:13]}  Qa6 {[%clk 0:02:35]} 19. h4 {[%clk 0:02:04]}  h6 {[%clk 0:02:32]} 20. h5 {[%clk 0:02:04]}  Bh7 {[%clk 0:02:31]} 21. f4 {[%clk 0:02:01]}  Nd5 {[%clk 0:02:24]} 22. Be4 {[%clk 0:01:43]}  Bxe4 {[%clk 0:02:12]} 23. dxe4 {[%clk 0:01:41]}  Nb6 {[%clk 0:02:12]} 24. f5 {[%clk 0:01:28]}  Nxc4 {[%clk 0:02:09]} 25. bxc4 {[%clk 0:01:11]}  Qb6+ {[%clk 0:02:09]} 26. Kh1 {[%clk 0:01:02]}  exf5 {[%clk 0:02:09]} 27. gxf5 {[%clk 0:01:01]}  Bg5 {[%clk 0:02:04]} 28. Rab1 {[%clk 0:00:55]}  Qa7 {[%clk 0:01:57]} 29. f6 {[%clk 0:00:45]}  Rfe8 {[%clk 0:01:56]} 30. Rf5 {[%clk 0:00:45]}  Re6 {[%clk 0:01:34]} 31. Qg2 {[%clk 0:00:43]}  Rxe5 {[%clk 0:01:02]} 32. Rxe5 {[%clk 0:00:40]}  Bxf6 {[%clk 0:01:01]} 33. Rf5 {[%clk 0:00:39]}  Qd4 {[%clk 0:00:55]} 34. Rbf1 {[%clk 0:00:37]}  Kf8 {[%clk 0:00:43]} 35. c3 {[%clk 0:00:37]}  Qxc3 {[%clk 0:00:39]} 36. e5 {[%clk 0:00:37]}  Bxe5 {[%clk 0:00:38]} 37. Rxf7+ {[%clk 0:00:37]}  Kg8 {[%clk 0:00:38]} 38. Qg4 {[%clk 0:00:24]}  Qd2 {[%clk 0:00:29]} 39. R7f2 {[%clk 0:00:19]}  Qd6 {[%clk 0:00:26]} 40. c5 {[%clk 0:00:17]}  Qd5+ {[%clk 0:00:25]} 41. Rf3 {[%clk 0:00:13]}  Rf8 {[%clk 0:00:20]} 42. Kg2 {[%clk 0:00:13]}  Rxf3 {[%clk 0:00:16]} 43. Rxf3 {[%clk 0:00:14]}  Qxc5 {[%clk 0:00:11]} 44. Qe6+ {[%clk 0:00:13]}  Kh7 {[%clk 0:00:11]} 45. Qg6+ {[%clk 0:00:13]}  Kh8 {[%clk 0:00:10]} 46. Qe8+ {[%clk 0:00:10]}  Kh7 {[%clk 0:00:10]} 47. Rf8 {[%clk 0:00:07]}  Qd5+ {[%clk 0:00:08]} 48. Rf3 {[%clk 0:00:04]}  Qd2+ {[%clk 0:00:08]} 49. Rf2 {[%clk 0:00:04]}  Qg5+ {[%clk 0:00:08]} 50. Kf1 {[%clk 0:00:05]}  Qc1+ {[%clk 0:00:08]} 51. Kg2 {[%clk 0:00:05]}  Qg5+ {[%clk 0:00:07]} 52. Kf1 {[%clk 0:00:06]}  Qc1+ {[%clk 0:00:07]} 53. Kg2 {[%clk 0:00:06]}  Qg5+ {[%clk 0:00:06]} 1/2-1/2


[Site "https://www.chess.com"]

[Event "Titled Tuesday Blitz February 28 Early 2023"]
[White "Orlov, Georgi"]
[Black "Sargissyan, Sargis"]
[WhiteFideId "2011271"]
[BlackFideId "13303210"]
[WhiteElo "2641"]
[BlackElo "2109"]
[Result "1-0"]
[Round "04"]
[TimeControl "180+2"]
[Date "2023.02.28"]
[WhiteClock "0:00:32"]
[BlackClock "0:00:01"]

1. d4 {[%clk 0:03:00]}  Nf6 {[%clk 0:02:57]} 2. Nf3 {[%clk 0:03:01]}  g6 {[%clk 0:02:55]} 3. c4 {[%clk 0:03:00]}  Bg7 {[%clk 0:02:55]} 4. Nc3 {[%clk 0:03:00]}  O-O {[%clk 0:02:51]} 5. e4 {[%clk 0:03:00]}  d6 {[%clk 0:02:51]} 6. Be2 {[%clk 0:03:01]}  e5 {[%clk 0:02:51]} 7. O-O {[%clk 0:03:00]}  Nc6 {[%clk 0:02:49]} 8. d5 {[%clk 0:02:59]}  Ne7 {[%clk 0:02:49]} 9. Nd2 {[%clk 0:02:59]}  Nd7 {[%clk 0:02:39]} 10. b4 {[%clk 0:02:56]}  a5 {[%clk 0:02:39]} 11. bxa5 {[%clk 0:02:53]}  Rxa5 {[%clk 0:02:37]} 12. Nb3 {[%clk 0:02:52]}  Ra8 {[%clk 0:02:37]} 13. Be3 {[%clk 0:02:51]}  f5 {[%clk 0:02:34]} 14. f3 {[%clk 0:02:51]}  b6 {[%clk 0:02:23]} 15. a4 {[%clk 0:02:50]}  Nc5 {[%clk 0:02:23]} 16. a5 {[%clk 0:02:36]}  Nxb3 {[%clk 0:02:20]} 17. Qxb3 {[%clk 0:02:35]}  fxe4 {[%clk 0:02:07]} 18. fxe4 {[%clk 0:02:28]}  Rxf1+ {[%clk 0:02:05]} 19. Bxf1 {[%clk 0:02:27]}  bxa5 {[%clk 0:01:49]} 20. c5 {[%clk 0:02:25]}  Ba6 {[%clk 0:01:31]} 21. cxd6 {[%clk 0:02:24]}  cxd6 {[%clk 0:01:31]} 22. Bb6 {[%clk 0:02:16]}  Qb8 {[%clk 0:01:25]} 23. Rxa5 {[%clk 0:02:07]}  Bxf1 {[%clk 0:01:23]} 24. Rxa8 {[%clk 0:02:04]}  Qxa8 {[%clk 0:01:23]} 25. Kxf1 {[%clk 0:02:04]}  Bh6 {[%clk 0:00:51]} 26. g3 {[%clk 0:01:37]}  Nc8 {[%clk 0:00:34]} 27. Bf2 {[%clk 0:01:35]}  Qa6+ {[%clk 0:00:33]} 28. Qb5 {[%clk 0:01:26]}  Qxb5+ {[%clk 0:00:22]} 29. Nxb5 {[%clk 0:01:25]}  Bd2 {[%clk 0:00:19]} 30. Ke2 {[%clk 0:01:24]}  Ba5 {[%clk 0:00:18]} 31. Kd3 {[%clk 0:01:24]}  Kf7 {[%clk 0:00:19]} 32. g4 {[%clk 0:01:23]}  Ke7 {[%clk 0:00:19]} 33. Bh4+ {[%clk 0:01:22]}  Kd7 {[%clk 0:00:19]} 34. Bf6 {[%clk 0:01:19]}  Bd8 {[%clk 0:00:17]} 35. Bg7 {[%clk 0:01:17]}  Bb6 {[%clk 0:00:16]} 36. Kc4 {[%clk 0:01:15]}  Bc5 {[%clk 0:00:16]} 37. Bh6 {[%clk 0:01:08]}  Nb6+ {[%clk 0:00:16]} 38. Kd3 {[%clk 0:01:05]}  Na4 {[%clk 0:00:15]} 39. Bc1 {[%clk 0:01:04]}  Bb6 {[%clk 0:00:14]} 40. Ba3 {[%clk 0:00:59]}  Bc5 {[%clk 0:00:14]} 41. Bc1 {[%clk 0:00:53]}  Bb6 {[%clk 0:00:14]} 42. Kc4 {[%clk 0:00:47]}  Bg1 {[%clk 0:00:12]} 43. Ba3 {[%clk 0:00:42]}  Bc5 {[%clk 0:00:12]} 44. Kb3 {[%clk 0:00:40]}  Bxa3 {[%clk 0:00:07]} 45. Kxa4 {[%clk 0:00:40]}  Bc5 {[%clk 0:00:08]} 46. Ka5 {[%clk 0:00:39]}  h5 {[%clk 0:00:07]} 47. gxh5 {[%clk 0:00:35]}  gxh5 {[%clk 0:00:07]} 48. Ka6 {[%clk 0:00:35]}  Be3 {[%clk 0:00:06]} 49. Kb7 {[%clk 0:00:34]}  Bc5 {[%clk 0:00:06]} 50. h3 {[%clk 0:00:34]}  Be3 {[%clk 0:00:05]} 51. Nc7 {[%clk 0:00:33]}  Bd4 {[%clk 0:00:05]} 52. Na6 {[%clk 0:00:32]}  Be3 {[%clk 0:00:03]} 53. Nb8+ {[%clk 0:00:32]}  Ke7 {[%clk 0:00:01]} 54. Kc6 {[%clk 0:00:32]} 1-0


[Site "https://www.chess.com"]

[Event "Titled Tuesday Blitz February 28 Early 2023"]
[White "Alvarez Calzadilla, Jose Avelino"]
[Black "Seletsky, Grigory"]
[WhiteFideId "3526151"]
[BlackFideId "14112191"]
[WhiteElo "2310"]
[BlackElo "2490"]
[Result "1-0"]
[Round "04"]
[TimeControl "180+2"]
[Date "2023.02.28"]
[WhiteClock "0:00:07"]
[BlackClock "0:00:09"]

1. d4 {[%clk 0:03:00]}  c6 {[%clk 0:03:00]} 2. Nf3 {[%clk 0:02:56]}  d5 {[%clk 0:03:00]} 3. c3 {[%clk 0:02:57]}  Bf5 {[%clk 0:03:00]} 4. Bg5 {[%clk 0:02:55]}  Nd7 {[%clk 0:02:59]} 5. Nbd2 {[%clk 0:02:54]}  Ngf6 {[%clk 0:02:59]} 6. e3 {[%clk 0:02:50]}  h6 {[%clk 0:02:58]} 7. Bh4 {[%clk 0:02:49]}  e6 {[%clk 0:02:59]} 8. Be2 {[%clk 0:02:48]}  Be7 {[%clk 0:02:59]} 9. O-O {[%clk 0:02:49]}  Ne4 {[%clk 0:02:58]} 10. Bxe7 {[%clk 0:02:44]}  Qxe7 {[%clk 0:02:56]} 11. c4 {[%clk 0:02:43]}  Nxd2 {[%clk 0:02:53]} 12. Qxd2 {[%clk 0:02:41]}  O-O {[%clk 0:02:53]} 13. b4 {[%clk 0:02:41]}  Rfd8 {[%clk 0:02:48]} 14. Qc3 {[%clk 0:02:35]}  Be4 {[%clk 0:02:43]} 15. a4 {[%clk 0:02:32]}  dxc4 {[%clk 0:02:36]} 16. Qxc4 {[%clk 0:02:28]}  Bxf3 {[%clk 0:02:35]} 17. Bxf3 {[%clk 0:02:28]}  e5 {[%clk 0:02:36]} 18. b5 {[%clk 0:02:15]}  Nb6 {[%clk 0:02:30]} 19. Qc5 {[%clk 0:02:04]}  Qxc5 {[%clk 0:02:27]} 20. dxc5 {[%clk 0:02:05]}  Nd5 {[%clk 0:02:27]} 21. Rfd1 {[%clk 0:01:58]}  Kf8 {[%clk 0:02:25]} 22. g3 {[%clk 0:01:51]}  Ke7 {[%clk 0:02:14]} 23. bxc6 {[%clk 0:01:40]}  bxc6 {[%clk 0:02:13]} 24. Rab1 {[%clk 0:01:40]}  Rd7 {[%clk 0:02:14]} 25. Bg4 {[%clk 0:01:31]}  Rc7 {[%clk 0:02:11]} 26. Rb3 {[%clk 0:01:30]}  Nf6 {[%clk 0:02:07]} 27. Bf3 {[%clk 0:01:27]}  Rd8 {[%clk 0:02:04]} 28. Rxd8 {[%clk 0:01:06]}  Kxd8 {[%clk 0:02:04]} 29. a5 {[%clk 0:01:05]}  Nd7 {[%clk 0:01:53]} 30. Rc3 {[%clk 0:01:05]}  f5 {[%clk 0:01:53]} 31. g4 {[%clk 0:01:04]}  e4 {[%clk 0:01:48]} 32. Be2 {[%clk 0:01:04]}  g6 {[%clk 0:01:48]} 33. h4 {[%clk 0:01:04]}  Ke7 {[%clk 0:01:24]} 34. h5 {[%clk 0:01:03]}  gxh5 {[%clk 0:01:22]} 35. gxf5 {[%clk 0:01:01]}  Rb7 {[%clk 0:01:15]} 36. a6 {[%clk 0:00:45]}  Rb1+ {[%clk 0:01:00]} 37. Kg2 {[%clk 0:00:44]}  Nf6 {[%clk 0:01:01]} 38. Rc4 {[%clk 0:00:39]}  Rb2 {[%clk 0:00:54]} 39. Bd1 {[%clk 0:00:35]}  h4 {[%clk 0:00:40]} 40. Rd4 {[%clk 0:00:27]}  Rb5 {[%clk 0:00:37]} 41. Rc4 {[%clk 0:00:22]}  Ra5 {[%clk 0:00:36]} 42. Bc2 {[%clk 0:00:20]}  Rxa6 {[%clk 0:00:23]} 43. Bxe4 {[%clk 0:00:20]}  h3+ {[%clk 0:00:24]} 44. Kxh3 {[%clk 0:00:19]}  Ra2 {[%clk 0:00:21]} 45. Kg3 {[%clk 0:00:16]}  Nxe4+ {[%clk 0:00:15]} 46. Rxe4+ {[%clk 0:00:14]}  Kf6 {[%clk 0:00:16]} 47. Rh4 {[%clk 0:00:12]}  Kxf5 {[%clk 0:00:17]} 48. Rxh6 {[%clk 0:00:12]}  a5 {[%clk 0:00:16]} 49. Rxc6 {[%clk 0:00:11]}  a4 {[%clk 0:00:13]} 50. Ra6 {[%clk 0:00:12]}  Ke5 {[%clk 0:00:12]} 51. c6 {[%clk 0:00:12]}  Kd6 {[%clk 0:00:13]} 52. f4 {[%clk 0:00:12]}  a3 {[%clk 0:00:13]} 53. e4 {[%clk 0:00:10]}  Ra1 {[%clk 0:00:13]} 54. Kg4 {[%clk 0:00:10]}  a2 {[%clk 0:00:12]} 55. Kf5 {[%clk 0:00:09]}  Kc7 {[%clk 0:00:12]} 56. e5 {[%clk 0:00:08]}  Rc1 {[%clk 0:00:10]} 57. Rxa2 {[%clk 0:00:08]}  Rxc6 {[%clk 0:00:11]} 58. Rd2 {[%clk 0:00:07]}  Rc4 {[%clk 0:00:09]} 59. Kg5 {[%clk 0:00:05]}  Re4 {[%clk 0:00:09]} 60. Kf5 {[%clk 0:00:05]}  Rc4 {[%clk 0:00:09]} 61. Rd6 {[%clk 0:00:06]}  Rc5 {[%clk 0:00:09]} 62. Ke6 {[%clk 0:00:06]}  Rc4 {[%clk 0:00:09]} 63. f5 {[%clk 0:00:06]}  Rh4 {[%clk 0:00:09]} 64. f6 {[%clk 0:00:06]}  Rh6 {[%clk 0:00:10]} 65. Rd7+ {[%clk 0:00:05]}  Kc6 {[%clk 0:00:10]} 66. Rd2 {[%clk 0:00:06]}  Rg6 {[%clk 0:00:10]} 67. Rc2+ {[%clk 0:00:06]}  Kb7 {[%clk 0:00:09]} 68. Kf7 {[%clk 0:00:06]}  Rg5 {[%clk 0:00:08]} 69. e6 {[%clk 0:00:07]}  Re5 {[%clk 0:00:09]} 70. e7 {[%clk 0:00:07]} 1-0


[Site "https://www.chess.com"]